[Event "Arona Festival 2024"]
[Site "Arona Tenerife"]
[Date "2024.06.28"]
[Round "8.3"]
[White "Pichot, Alan"]
[Black "Royal, Shreyas"]
[Result "0-1"]
[ECO "C55"]
[WhiteElo "2640"]
[BlackElo "2483"]
[Annotator "TA"]
[PlyCount "78"]
[EventDate "2024.06.20"]
[EventType "swiss"]
[EventCountry "ESP"]
[SourceTitle "playchess.com"]
[Source "ChessBase"]
[SourceQuality "1"]
[TimeControl "5400+30"]

{[%evp 24,78,27,-15,114,61,56,-5,8,0,0,6,81,88,81,80,118,71,71,0,0,0,29,-107,-139,-133,-144,-143,-140,-153,-150,-240,-210,-169,-215,-317,-317,-356,-415,-368,-376,-426,-426,-450,-421,-429,-393,-358,-366,-418,-406,-427,-416,-798,-800,-750,-638]} 1. e4 {[%emt 0:00:06]} e5 {[%emt 0:00:30]} 2. Nf3 {[%emt 0:00:10]} Nc6 {[%emt 0:00:08]} 3. Bc4 {[%emt 0:00:10]} Nf6 {[%emt 0:00:27]} 4. d3 {[%emt 0:00:13]} h6 {[%emt 0:00:32]} 5. O-O {[%emt 0:00:37]} d6 {[%emt 0:00:19]} 6. c3 {[%emt 0:03:42]} g5 {[%emt 0:00:18] C55: Two Knights: 4 d3, 4 d4 exd4 5 e5 and Max Lange Attack.} 7. Nbd2 {[%emt 0:03:10]} Bg7 {[%emt 0:00:51]} 8. Bb3 {[%emt 0:00:15]} a5 $1 {[%emt 0:00:37][%mdl 4] is currently scoring better than 8...0-0.} 9. Nc4 {[%emt 0:03:09]} O-O {[%emt 0:06:41]} 10. Ne3 {[%emt 0:05:44]} Be6 {[%emt 0:04:25]} 11. h4 {[%emt 0:15:29]} g4 {[%emt 0:01:06]} 12. Nh2 {[%emt 0:03:04]} h5 {[%emt 0:01:01]} 13. f4 $146 {[%emt 0:02:24]} (13. Re1 {simplifies} d5 14. f3 dxe4 15. dxe4 Qxd1 16. Bxd1 a4 17. Bc2) ({Predecessor:} 13. Re1 d5 14. Qc2 d4 15. Nf5 Bxf5 16. exf5 Qd7 17. Nf1 Qxf5 18. Ng3 Qd7 19. Bg5 {1-0 De la Colina,N (2198)-Mrithyunjay,M (1754) Titled Tuesday intern op 06th Jun Early blitz 2023 (5)}) 13... Nd7 {[%emt 0:12:08]} (13... Ne7 $1 $11) 14. f5 {[%emt 0:05:24]} (14. fxe5 $16 a4 15. Bc2 (15. Bxa4 Bxe5 16. Nf5 Bxf5 $16)) 14... Bxb3 $14 {[%emt 0:00:36]} 15. Qxb3 {[%emt 0:02:29]} (15. axb3 $14 f6 (15... Qxh4 $2 16. f6 $18) 16. Re1) 15... Ne7 $11 {[%emt 0:15:34]} 16. f6 (16. Qxb7 {simplifies} a4 17. Qb4 Qb8 18. Qxb8 Rfxb8 19. Rb1) 16... Nxf6 {[%emt 0:03:02]} 17. Nf5 $1 {[%emt 0:11:53]} Nxf5 (17... d5 $11) 18. Rxf5 $16 {[%emt 0:00:05]} Qd7 {[%emt 0:00:09]} 19. Bg5 {[%emt 0:00:44]} Nh7 {[%emt 0:07:08] [#]} 20. Be3 {[%emt 0:01:20]} (20. Nf1 $142 $1) 20... d5 $16 {[%emt 0:00:36]} 21. Raf1 {[%emt 0:04:07]} (21. Rxh5 dxe4 22. dxe4 (22. Qxb7 $2 g3 $19) 22... g3 $14) (21. Qxb7 $2 Nf6 22. Qb3 dxe4 23. dxe4 Qd3 $19 (23... Nxe4 24. Rxh5 g3 25. Nf1 $17)) (21. Nf1 $16) 21... dxe4 {[%emt 0:04:34]} 22. dxe4 {[%emt 0:00:32]} (22. Qxb7 Qxd3 (22... exd3 23. Rxf7 Rab8 24. Rxf8+ Rxf8 25. Rxf8+ Bxf8 26. Nf1 $17) 23. Re1 Rab8 24. Qxc7 Rxb2 $17) 22... Qc6 {[%emt 0:03:38]} 23. Rxh5 {[%emt 0:11:41]} (23. Rxf7 $11 {remains equal.} Kh8 24. Rxf8+ Bxf8 25. Qf7 Qxe4 26. Re1 (26. Bf2 Qf4 $11)) 23... Qxe4 $17 {[%emt 0:01:14]} 24. Bc5 {[%emt 0:00:34]} g3 $1 {[%emt 0:02:01]} 25. Nf3 {[%emt 0:01:18]} a4 {[%emt 0:01:12]} 26. Qd1 {[%emt 0:11:29]} Rfd8 {[%emt 0:01:28]} 27. Nd2 {[%emt 0:01:54]} (27. Qe1 $17 Qxe1 28. Rxe1) 27... Qg6 {[%emt 0:04:24]} 28. Rhf5 {[%emt 0:00:19]} Qh6 {[%emt 0:01:19]} 29. Rxf7 {[%emt 0:01:57]} (29. Qf3 {was called for.} Qxh4 (29... Qxd2 $2 30. Rxf7 Rd7 31. Be7 $19) (29... Rxd2 $2 30. Be3 $19) 30. Rh5) 29... Nf6 $19 {[%emt 0:08:22]} (29... Qxd2 $2 30. Qg4 Qh6 31. R7f3 $17) 30. Rxg7+ {[%emt 0:03:13]} Kxg7 {[%emt 0:00:07]} 31. Be7 {[%emt 0:00:18]} Rxd2 {[%emt 0:00:08]} 32. Bxf6+ {[%emt 0:00:12]} Kh7 {[%emt 0:00:06]} 33. Qe1 {[%emt 0:07:07]} Rf8 {[%emt 0:01:48]} (33... Rxb2 34. Qe4+ (34. Qxe5 Rf8 $16) 34... Qg6 35. Rf5 $18) 34. Qxe5 {[%emt 0:00:23]} Rd6 {[%emt 0:03:57]} (34... Rxb2 35. Qxc7+ Kg8 36. Qxg3+ Kh7 37. Qc7+ Kg8 38. Qc4+ Kh7 39. Qe4+ (39. Qc7+ Kg8 $16) 39... Qg6 40. Rf5 $18 (40. Qf3 Rxf6 41. h5 Qc2 42. Qg3 Rxf1+ 43. Kh2 Qf5 44. c4 Qxh5+ 45. Qh3 Rh1+ 46. Kxh1 Qxh3+ 47. gxh3 Rxa2 48. c5 a3 49. c6 Rc2 50. cxb7 a2 51. b8=Q a1=Q+) (40. Qf3 $2 Rxf6 41. h5 Qc2 $19)) 35. Qe7+ {[%emt 0:02:04]} Kg8 {[%emt 0:00:05]} 36. Bd4 {[%emt 0:00:23]} Rxf1+ {[%emt 0:01:51]} 37. Kxf1 {[%emt 0:00:01]} Qg6 {[%emt 0:00:55]} 38. Qe5 {[%emt 0:01:12]} (38. Qg5 $142) 38... Re6 $19 {[%emt 0:00:08]} 39. Qg5 {[%emt 0:00:29]} Kh7 {[%emt 0:00:54]} 0-1

[Event "Arona Festival 2024"]
[Site "Arona Tenerife"]
[Date "2024.06.28"]
[Round "8.4"]
[White "Omelja, Artem"]
[Black "Kazakouski, Valery"]
[Result "0-1"]
[ECO "A46"]
[WhiteElo "2435"]
[BlackElo "2603"]
[Annotator "TA"]
[PlyCount "104"]
[EventDate "2024.06.20"]
[EventType "swiss"]
[EventCountry "ESP"]
[SourceTitle "playchess.com"]
[Source "ChessBase"]
[SourceQuality "1"]
[TimeControl "5400+30"]

{[%evp 14,104,16,17,43,47,39,39,72,66,70,50,80,27,32,35,39,0,0,0,1,0,11,-39,25,12,19,17,26,14,14,7,18,19,52,50,102,85,91,62,175,181,186,183,216,197,262,247,274,262,414,406,379,172,197,175,189,152,157,53,65,62,51,0,479,472,445,456,601,350,315,322,326,325,310,8,6,14,8,15,34,0,2425,2063,29980,29981,29980,-363,-341,-29987,-29988,-29997,-29998]} 1. d4 {[%emt 0:00:07]} Nf6 {[%emt 0:03:17]} 2. Nf3 {[%emt 0:00:06]} e6 {[%emt 0:00:20]} 3. e3 {[%emt 0:00:48]} c5 {[%emt 0:02:19]} 4. Bd3 {[%emt 0:00:49]} Nc6 {[%emt 0:04:22]} 5. O-O {[%emt 0:01:21]} Be7 {[%emt 0:02:24]} 6. b3 {[%emt 0:01:12]} O-O {[%emt 0:01:30]} 7. Bb2 {[%emt 0:00:30]} cxd4 {[%emt 0:03:07]} 8. exd4 {[%emt 0:00:13]} Nd5 {[%emt 0:02:53]} 9. Re1 {[%emt 0:04:43]} Nf4 {[%emt 0:00:40]} 10. Bf1 {[%emt 0:00:27]} b6 {[%emt 0:01:30] White is slightly better.} 11. g3 {[%emt 0:07:22]} Ng6 {[%emt 0:00:41]} 12. Bg2 {[%emt 0:00:17]} Bb7 {[%emt 0:01:33]} 13. Nbd2 {[%emt 0:02:04]} (13. d5 $16 exd5 14. Qxd5) 13... d5 $11 {[%emt 0:03:55]} 14. Nf1 {[%emt 0:02:43]} b5 {[%emt 0:05:27]} 15. Ne3 {[%emt 0:04:20]} b4 {[%emt 0:01:26]} 16. h4 {[%emt 0:00:52][%cal Bh2h4,Bh4h5,Bh5h6][%mdl 32]} Re8 {[%emt 0:00:59]} 17. h5 {[%emt 0:03:45]} Nf8 {[%emt 0:00:28]} 18. Ng4 {[%emt 0:04:15]} (18. a3 $11) 18... f6 {[%emt 0:07:07]} (18... h6 $15) 19. h6 {[%emt 0:09:58] hxg7 is the strong threat.} g6 {[%emt 0:01:04]} 20. a3 {[%emt 0:00:58]} a5 {[%emt 0:00:53]} 21. c3 {[%emt 0:04:10]} bxc3 {[%emt 0:01:46]} 22. Bxc3 {[%emt 0:00:06][%cal Ob3b4]} Qb6 {[%emt 0:04:25]} 23. Qd2 {[%emt 0:01:09]} Nd8 {[%emt 0:04:31][%cal Od8f7]} 24. b4 {[%emt 0:01:21]} a4 {[%emt 0:00:21] [#]} (24... axb4 $14 25. Bxb4 Nd7 26. Bxe7 Rxe7) 25. b5 $1 $16 {[%emt 0:02:43][%mdl 512]} Nd7 {[%emt 0:03:55][%cal Od8f7] [#]} (25... Nf7 26. Bb4) 26. Bb4 $1 {[%emt 0:04:06]} Bxb4 {[%emt 0:00:58]} ({Better is} 26... Nf7 $1 $14) 27. Qxb4 $18 {[%emt 0:00:25]} (27. axb4 $6 Qxb5 28. Rec1 Rf8 $14) 27... Nf7 {[%emt 0:00:24]} 28. Rac1 {[%emt 0:03:40]} Kh8 {[%emt 0:02:02]} 29. Bf1 {[%emt 0:08:48]} e5 {[%emt 0:11:15]} (29... Kg8 $142 30. Rc3 f5) 30. dxe5 {[%emt 0:04:45]} fxe5 {[%emt 0:01:37]} 31. Bg2 {[%emt 0:04:04]} Re6 {[%emt 0:02:59]} (31... d4 $142 32. Qc4 Nd6) 32. Rc2 {[%emt 0:02:33]} Rae8 {[%emt 0:01:27]} 33. Rce2 {[%emt 0:07:20]} (33. Qxa4 Nc5 34. Rxc5 (34. Qb4 Nd3 $11) 34... Qxc5 $11) (33. Rec1 $142) 33... Kg8 {[%emt 0:05:53]} 34. Qxa4 {[%emt 0:01:59]} Nc5 {[%emt 0:02:44]} 35. Qd1 {[%emt 0:00:58]} Ne4 {[%emt 0:01:20]} 36. Qb3 {[%emt 0:00:26] Against Nc3} (36. Re3 $16) 36... Nxg3 $14 {[%emt 0:01:46]} 37. Rxe5 {[%emt 0:00:24]} Nxe5 {[%emt 0:02:18]} 38. Nfxe5 {[%emt 0:00:33]} (38. Rxe5 $14 Ne2+ 39. Kf1) 38... Nh5 $2 {[%emt 0:02:10][%mdl 8192]} (38... Qa5 $11 {and Black is okay.} 39. Re3 Nf5 40. Bxd5 Bxd5 41. Qxd5 Nxe3 42. Nf6+ Kf8 43. Qc5+ (43. fxe3 $2 Qe1+ 44. Kh2 Qe2+ 45. Qg2 Qxg2+ 46. Kxg2 Rxe5 $19) (43. Nxh7+ Kg8 $11) 43... R8e7 44. Qc8+ Re8 45. Nxh7+ (45. Qc5+ R8e7 $11) 45... Kg8 46. Nf6+ Kf8 47. Qc5+ R8e7 (47... R6e7 48. Nfd7+ Kg8 49. Nf6+ Kf8 50. Nh7+ Kg8 51. Nf6+ Kf8 $11) 48. Qc8+ (48. Nxg6+ $2 Kf7 $19) 48... Re8 49. Nh7+ (49. Qc5+ R8e7 $11) 49... Kg8 50. Nf6+ Kf8) 39. Bxd5 $18 {[%emt 0:00:47]} Bxd5 {[%emt 0:00:17]} 40. Qxd5 {[%emt 0:00:06]} Qd6 {[%emt 0:01:56] Dodges Nd7} 41. Qc4 {[%emt 0:04:02]} Kf8 {[%emt 0:02:33]} 42. Qc3 {[%emt 0:01:26]} Qd5 {[%emt 0:02:08][%cal Of8g8] [#]} 43. b6 $1 {[%emt 0:04:00][%mdl 512] Strongly threatening Re3.} Kg8 {[%emt 0:00:20]} (43... Rxb6 $2 44. Nd7+ Kf7 45. Nge5+ (45. Nxb6 Rxe1+ 46. Qxe1 Qf5 $18) 45... Kg8 46. Nxb6 $18) 44. Qb4 {[%emt 0:03:43]} (44. Qc7 $18 {White wants to mate with Qf7+.} R6e7 45. Qc2 (45. Qc3 Rf8 $18)) 44... Rb8 $11 {[%emt 0:02:50]} 45. Rc1 {[%emt 0:01:35]} Rxe5 $40 {[%emt 0:02:57][%mdl 128] White needs to defend precisely.} 46. Nxe5 Qxe5 {[%emt 0:00:04]} 47. Rc7 {[%emt 0:01:27] Threatening mate with Qc4+.} Rd8 $2 {[%emt 0:02:36][%mdl 8192]} (47... Qg5+ $11 48. Kh1 Qd5+ 49. Kg1 Qg5+ 50. Kf1 Qd5) 48. Qc4+ $18 {[%emt 0:00:29]} Kh8 {[%emt 0:00:19]} 49. Rc8 {[%emt 0:00:33]} Qg5+ {[%emt 0:00:33] [#]} 50. Kf1 $4 {[%emt 0:00:07][%mdl 8192]} (50. Kh2 $1 {mates} Qf6 51. Qc3 (51. Rxd8+ Qxd8 52. Kg2 Qg5+ 53. Kf1 Qxh6 $18) 51... Rg8 52. Qxf6+ Nxf6 53. b7 Nd7 54. Kg3 g5 55. Kg4) 50... Ng3+ $1 $19 {[%emt 0:00:24]} 51. Kg2 $2 {[%emt 0:00:44]} (51. fxg3 $2 {perishes.} Qf5+ 52. Kg2 Qxc8 $19) (51. Kg1 $19 Ne4+ 52. Kf1 Nd2+ 53. Ke2 Qe7+ (53... Nxc4 54. Rxd8+ Qxd8 55. b7 Qd2+ 56. Kf3 Qd5+ 57. Kf4 Qxb7 58. a4 Qe7 59. Kg3 Nd2 60. Kh3 Qa3+ 61. Kh2 Qf3 62. a5 Qxf2+ 63. Kh3 Ne4 64. Kg4 Qg3#) 54. Kd1 Nxc4+ 55. Rxd8+ Qxd8+ 56. Ke2 Qd2+ (56... Qxb6 {gets mated.} 57. Kd3 Nxa3 58. Ke4 Qxf2 59. Kd3 Qf4 60. Kc3 Qd6 61. Kb3 Qc5 62. Kb2 Qe3 63. Ka2 Nc4 64. Kb1 Qc3 65. Ka2 Qb2#) (56... Nxb6 {is a self mate.} 57. Ke3 Qe7+ 58. Kd4 Qxa3 59. Ke4 Qc3 60. f3 Kg8 61. f4 Kf8 62. f5 g5 63. f6 Kf7 64. Kf5 Nd5 65. Kxg5 Qg3+ 66. Kh5 Nxf6#) 57. Kf3 Qd5+ (57... Nxb6 58. Ke4 Qd5+ 59. Ke3 Nc4+ 60. Ke2 Qe4+ 61. Kd1 Nxa3 62. f4 Nc4 63. f5 gxf5 64. Kc1 Qe2 65. Kb1 Qb2#) 58. Kf4 Qf5+ (58... Nxb6 59. Ke3 Nc4+ 60. Ke2 Ne5 61. f4 Qd3+ 62. Ke1 Nf3+ 63. Kf2 Nd2 64. Ke1 Ne4 65. a4 Qe3+ 66. Kf1 Qf2#) 59. Kg3 Nd2 (59... Nxb6 60. Kg2 Nd5 61. Kg3 Qf4+ 62. Kg2 Qg4+ 63. Kf1 Nf4 64. f3 Qxf3+ 65. Kg1 Qg2#) 60. f4 Qd3+ (60... Ne4+ 61. Kf3 Nc5 62. b7 Qd3+ 63. Kg2 Nxb7 64. Kh1 Nc5 65. f5 Qxf5 66. Kh2 Ne4 67. Kh1 Qf2 68. a4 Ng3#) 61. Kh2 Ne4 (61... Qxa3 62. b7 Qb3 63. Kg1 Qxb7 64. f5 Qf3 65. fxg6 Ne4 66. g7+ Kg8 67. Kh2 Qg3+ 68. Kh1 Nf2#) (61... Qe2+ 62. Kh3 Nf1 63. b7 Qh2+ 64. Kg4 Qh5#) 62. Kh1 Qg3 63. b7 Nf2#) 51... Ne4+ {[%emt 0:00:13]} 52. Kh2 {[%emt 0:00:36]} Qh4+ {[%emt 0:00:08] Weighted Error Value: White=0.53/Black=0.48.  Loses game:     	---       	Black=2      Missed win:     	White=1     	---        Mistake:       	White=5     	Black=5      Inaccurate:     	White=3     	Black=5      OK:         	White=13    	Black=14     Best:        	White=4     	Black=8      Strong:       	White=1     	---        Brilliant:      	White=2     	---} 0-1

[Event "Arona Festival 2024"]
[Site "Arona Tenerife"]
[Date "2024.06.28"]
[Round "8.5"]
[White "Peralta, Fernando"]
[Black "Bilguun, Sumiya"]
[Result "1/2-1/2"]
[ECO "D31"]
[WhiteElo "2562"]
[BlackElo "2466"]
[Annotator "TA"]
[PlyCount "129"]
[EventDate "2024.06.20"]
[EventType "swiss"]
[EventCountry "ESP"]
[SourceTitle "playchess.com"]
[Source "ChessBase"]
[SourceQuality "1"]
[TimeControl "5400+30"]

{[%evp 14,129,1,0,42,30,46,35,39,53,55,54,64,35,43,50,40,33,47,37,45,52,97,90,118,125,104,107,124,96,106,93,95,101,124,130,127,97,104,93,114,118,116,0,0,0,0,0,0,0,0,0,0,0,0,0,0,0,0,0,39,31,22,20,103,103,102,110,107,14,15,0,225,64,120,86,79,0,129,126,436,160,229,233,184,179,411,411,356,70,68,0,40,-62,-62,-62,-67,-68,0,0,0,0,0,0,0,0,0,0,0,0,0,0,4,4,4,4,4,0]} 1. d4 {[%emt 0:01:16]} d5 {[%emt 0:00:14]} 2. c4 {[%emt 0:00:09]} e6 {[%emt 0:00:07]} 3. Nc3 {[%emt 0:00:14]} Be7 {[%emt 0:00:19]} 4. cxd5 {[%emt 0:05:40]} exd5 {[%emt 0:03:11]} 5. Bf4 {[%emt 0:00:11]} c6 {[%emt 0:00:25]} 6. e3 {[%emt 0:03:05]} Bf5 {[%emt 0:02:01]} 7. g4 {[%emt 0:00:09]} Be6 {[%emt 0:05:11] [#]} 8. h4 $1 {[%emt 0:00:26][%cal Bh2h4,Bh4h5][%mdl 32]} Nh6 {[%emt 0:16:12]} (8... Bxh4 9. Qb3) 9. g5 {[%emt 0:06:57]} Nf5 {[%emt 0:01:46]} 10. Bd3 {[%emt 0:00:09]} Nd7 {[%emt 0:01:14] White is slightly better.} 11. Nf3 {[%emt 0:05:55]} g6 {[%emt 0:09:38]} 12. h5 {[%emt 0:04:25]} Rg8 {[%emt 0:00:38]} 13. Qe2 {[%emt 0:18:54]} Nb6 {[%emt 0:26:54]} 14. O-O-O {[%emt 0:03:30]} Bd6 {[%emt 0:01:32]} 15. Ne5 {[%emt 0:04:56]} Qe7 {[%emt 0:09:37]} 16. hxg6 {[%emt 0:10:52]} hxg6 {[%emt 0:00:16]} 17. Rh7 {[%emt 0:00:20]} O-O-O {[%emt 0:04:33]} 18. Qc2 {[%emt 0:02:41]} Bxe5 {[%emt 0:09:27]} 19. Bxe5 {[%emt 0:00:19]} Nd7 {[%emt 0:00:53][%cal Bb6d7,Bd7f8,Bf8e6][%mdl 32] Black is weak on the dark squares} 20. Bf4 {[%emt 0:03:28]} Nf8 {[%emt 0:01:14]} 21. Rhh1 {[%emt 0:01:11]} Nd6 {[%emt 0:03:57]} 22. Qa4 {[%emt 0:14:06]} Kb8 {[%emt 0:00:21]} 23. Qa3 {[%emt 0:00:58] White has more active pieces. The black rooks are passive.} Bg4 {[%emt 0:00:14]} 24. Rdg1 {[%emt 0:05:09]} Bf5 {[%emt 0:00:16]} 25. Be2 {[%emt 0:03:59]} Ne6 {[%emt 0:00:56]} 26. Be5 {[%emt 0:00:10] Against Nxf4} Qf8 {[%emt 0:01:30]} 27. f3 {[%emt 0:00:50] Threatens to win with e4.} Nc7 {[%emt 0:00:21] [#]} 28. e4 {[%emt 0:01:07]} dxe4 $11 {[%emt 0:00:42]} 29. fxe4 {[%emt 0:02:45]} (29. Nxe4 {simplifies} Nxe4 30. fxe4 Qxa3 31. bxa3 Bxe4 32. Rh7) 29... Nxe4 {[%emt 0:00:09] And now ...Qxa3 would win.} 30. Bxc7+ {[%emt 0:00:54]} Kxc7 {[%emt 0:00:10]} 31. Qa5+ {[%emt 0:00:04]} Kc8 {[%emt 0:01:12]} (31... Kb8 $6 32. Nxe4 Qe7 33. Ng3 $16) 32. Nxe4 $1 {[%emt 0:00:31]} Bxe4 {[%emt 0:00:08]} 33. Bg4+ {[%emt 0:00:16]} Bf5 $1 {[%emt 0:00:05]} 34. Bxf5+ {[%emt 0:00:06]} gxf5 {[%emt 0:00:09]} 35. Qxf5+ {[%emt 0:00:25]} Kb8 {[%emt 0:01:04]} 36. Rh7 {[%emt 0:01:09]} Qe7 {[%emt 0:01:12] ...Qe3+ would now be deadly.} 37. Qf4+ {[%emt 0:00:48]} (37. Qe5+ {simplifies} Qxe5 38. dxe5 Rdf8 39. Kd2) 37... Ka8 {[%emt 0:00:31]} 38. Rxf7 {[%emt 0:00:36]} (38. Qxf7 Qe3+ 39. Kc2 Rb8 $15 (39... Qe4+ 40. Kc1 $17)) 38... Qb4 {[%emt 0:00:23]} (38... Qe2 $1 $11 {keeps the balance.}) 39. a3 $1 $16 {[%emt 0:00:44]} Qc4+ {[%emt 0:00:16]} 40. Kb1 {[%emt 0:00:02] Black must now prevent g6.} a6 {[%emt 0:00:15]} 41. Qf2 {[%emt 0:01:03]} (41. Ka1 $1 $16) 41... Rde8 $1 $11 {[%emt 0:00:32]} 42. Ka1 {[%emt 0:00:30]} Qd3 $2 {[%emt 0:00:53]} (42... Rxg5 $11 {and Black has nothing to worry.} 43. Rxg5 Qc1+ 44. Ka2 Qxg5) 43. Rf3 $2 {[%emt 0:01:01]} (43. d5 $1 $18 {[%cal Rd5c6] aiming for dxc6.} cxd5 44. Qb6) 43... Qe4 {[%emt 0:00:35]} (43... Qc4 $14) 44. Rf4 {[%emt 0:00:00]} Qd3 {[%emt 0:00:09]} 45. Rf3 {[%emt 0:00:00]} (45. Qf1 $142 Qd2 46. Rfg4) 45... Qe4 $16 {[%emt 0:00:08]} 46. Rf6 {[%emt 0:00:15]} Re6 $2 {[%emt 0:01:20][%mdl 8192]} (46... Rg6 $16 {is tougher.} 47. Rxg6 Qxg6) 47. Rf8+ $2 {[%emt 0:01:03]} (47. g6 $18 {and the rest is easy.}) 47... Re8 {[%emt 0:00:20]} (47... Rxf8 $16 48. Qxf8+ Re8) 48. Rxg8 $1 $18 {[%emt 0:00:33]} Rxg8 {[%emt 0:00:04][%mdl 4096] Endgame. [#] KQR-KQR} 49. Qf7 {[%emt 0:00:26] Prevents Qe6} Rd8 {[%emt 0:00:57]} (49... Qg6 50. Qxg6 Rxg6) 50. g6 {[%emt 0:00:34]} Qxd4 {[%emt 0:00:01] [#]} 51. Rf1 {[%emt 0:00:36]} (51. Rg3 $1 $18 {Strongly threatening g7.} Qd5 52. Qxd5 cxd5 53. b4) 51... Rd7 $14 {[%emt 0:00:11]} 52. Qe6 {[%emt 0:00:29]} (52. Qb3 $14 Rd5 53. Qg3) 52... Ka7 {[%emt 0:00:32]} 53. Ka2 {[%emt 0:00:29]} ({White should try} 53. Qb3 $14) 53... Rd6 $15 {[%emt 0:00:27]} 54. Qf7 {[%emt 0:00:31] [#]} Rxg6 {[%emt 0:00:09]} 55. Qf2 {[%emt 0:00:30]} (55. Rf4 Qd6) 55... c5 {[%emt 0:00:54]} (55... Rd6 $15) 56. Qxd4 $11 {[%emt 0:00:25] The position is equal.} cxd4 {[%emt 0:00:01] KR-KR} 57. Kb3 {[%emt 0:00:32]} b5 {[%emt 0:00:57]} 58. a4 {[%emt 0:00:34]} Kb6 {[%emt 0:00:43]} 59. axb5 {[%emt 0:00:05]} axb5 {[%emt 0:00:04]} 60. Kb4 {[%emt 0:00:36]} Rc6 {[%emt 0:00:37]} 61. b3 {[%emt 0:00:43]} Rd6 {[%emt 0:00:12]} 62. Rf5 {[%emt 0:00:26]} d3 {[%emt 0:00:23]} 63. Rxb5+ {[%emt 0:00:06]} Kc6 {[%emt 0:00:07]} (63... Kc7 $5 64. Rc5+ $8 Rc6 $11) 64. Rc5+ {[%emt 0:00:04]} Kb6 {[%emt 0:00:10] ( -> ...d2)} 65. Rb5+ {[%emt 0:02:03] White really could win this.   Weighted Error Value: White=0.28 (precise) /Black=0.29 (precise) .  Loses game:     	---       	Black=2      Missed win:     	White=3     	---        Mistake:       	White=5     	Black=5      Inaccurate:     	White=1     	Black=4      OK:         	White=25    	Black=15     Best:        	White=6     	Black=7      Strong:       	White=3     	Black=2      Brilliant:      	---       	Black=1} 1/2-1/2

[Event "Arona Festival 2024"]
[Site "Arona Tenerife"]
[Date "2024.06.28"]
[Round "8.6"]
[White "Samant Aditya S"]
[Black "Socko, Bartosz"]
[Result "1/2-1/2"]
[ECO "C42"]
[WhiteElo "2469"]
[BlackElo "2556"]
[Annotator "TA"]
[PlyCount "102"]
[EventDate "2024.06.20"]
[EventType "swiss"]
[EventCountry "ESP"]
[SourceTitle "playchess.com"]
[Source "ChessBase"]
[SourceQuality "1"]
[TimeControl "5400+30"]

{[%evp 21,102,18,25,23,21,15,25,13,22,0,0,0,0,0,25,16,36,0,14,0,16,0,0,8,11,13,11,12,12,6,18,6,21,14,21,13,10,7,10,8,11,7,15,18,16,0,10,0,0,0,0,0,0,0,0,0,0,0,0,0,0,0,0,0,29,0,0,0,0,0,0,0,0,0,0,0,0,0,0,0,0,0,0]} 1. e4 {[%emt 0:00:04]} e5 {[%emt 0:00:05]} 2. Nf3 {[%emt 0:00:04]} Nf6 {[%emt 0:00:05]} 3. Nxe5 {[%emt 0:01:16]} d6 {[%emt 0:00:06]} 4. Nf3 {[%emt 0:00:04]} Nxe4 {[%emt 0:00:05]} 5. d4 {[%emt 0:00:05]} d5 {[%emt 0:00:06]} 6. Bd3 {[%emt 0:00:05]} Bf5 {[%emt 0:00:04]} 7. O-O {[%emt 0:00:24]} Be7 {[%emt 0:00:04]} 8. Re1 {[%emt 0:00:45]} O-O {[%emt 0:00:08]} 9. Nbd2 {[%emt 0:00:10] C42: Petroff Defence: 3 Nxe5 and unusual White 3rd moves.} Nd6 {[%emt 0:00:08]} 10. Nf1 {[%emt 0:00:28]} Nd7 {[%emt 0:00:13]} 11. Ng3 {[%emt 0:08:03]} Bxd3 12. Qxd3 {[%emt 0:00:06]} Re8 {[%emt 0:00:44]} 13. Bf4 {[%emt 0:02:22]} Bf8 $146 {[%emt 0:01:41]} ({Predecessor:} 13... c6 14. Re2 Bf8 15. Rxe8 Nxe8 16. Nf5 Nef6 17. Ne5 Ne4 18. f3 Nxe5 19. Bxe5 Ng5 {½-½ Navara,D (2737)-Grischuk,A (2783) FIDE World Cup 2017 (3.2)}) 14. Rxe8 {[%emt 0:04:37]} Nxe8 {[%emt 0:00:05]} 15. Re1 {[%emt 0:02:29]} c6 {[%emt 0:01:36]} 16. b3 {[%emt 0:10:59]} Ndf6 {[%emt 0:04:27]} 17. c4 {[%emt 0:01:29]} dxc4 {[%emt 0:08:49]} 18. bxc4 {[%emt 0:00:11]} Qa5 {[%emt 0:00:16]} 19. Re2 {[%emt 0:02:28]} Rd8 {[%emt 0:00:10]} 20. Qb3 {[%emt 0:03:23]} Qb4 {[%emt 0:07:05]} 21. Bd2 {[%emt 0:03:29]} Qxb3 {[%emt 0:03:00]} 22. axb3 {[%emt 0:00:02]} h6 {[%emt 0:02:04]} 23. Bc3 {[%emt 0:01:30]} g6 {[%emt 0:04:34]} 24. Kf1 {[%emt 0:01:38]} Bg7 {[%emt 0:00:09]} 25. Ra2 {[%emt 0:01:56]} a6 {[%emt 0:00:18]} 26. Ba5 {[%emt 0:00:37]} Rc8 {[%emt 0:03:32]} 27. Ke2 {[%emt 0:00:58]} Nc7 {[%emt 0:01:02]} 28. Bxc7 {[%emt 0:01:02]} Rxc7 {[%emt 0:00:07]} 29. Kd3 {[%emt 0:00:07]} Re7 {[%emt 0:02:36]} 30. h3 {[%emt 0:01:00]} Kf8 {[%emt 0:00:35]} 31. Re2 {[%emt 0:01:03]} Rxe2 {[%emt 0:00:57]} 32. Nxe2 {[%emt 0:00:08]} Ke7 {[%emt 0:00:05]} 33. Nc3 {[%emt 0:00:23]} Nd7 {[%emt 0:01:24]} 34. b4 {[%emt 0:04:48]} Ke6 {[%emt 0:03:36]} 35. c5 {[%emt 0:01:16]} Nf6 {[%emt 0:04:11]} 36. Nd2 {[%emt 0:06:43]} Nd5 {[%emt 0:03:52]} 37. Nxd5 $1 {[%emt 0:00:47]} cxd5 {[%emt 0:00:25]} 38. Nb1 {[%emt 0:01:48]} Kd7 {[%emt 0:01:12]} 39. Na3 {[%emt 0:04:50]} Kc6 {[%emt 0:00:48]} 40. Kc3 {[%emt 0:00:29]} h5 {[%emt 0:04:43]} 41. Nc2 {[%emt 0:01:30]} Bh6 {[%emt 0:02:42]} 42. Ne1 {[%emt 0:01:51]} Bf4 {[%emt 0:08:54]} 43. Nd3 {[%emt 0:01:28]} Bc7 {[%emt 0:00:07]} 44. g4 {[%emt 0:07:13]} hxg4 {[%emt 0:03:50]} 45. hxg4 {[%emt 0:00:03]} g5 {[%emt 0:05:05]} 46. Kb3 {[%emt 0:03:09]} Kb5 {[%emt 0:00:55]} 47. Ne1 {[%emt 0:03:03]} Bf4 {[%emt 0:00:50]} 48. Nc2 {[%emt 0:00:07]} Bc1 {[%emt 0:13:38]} 49. Ne1 {[%emt 0:01:49]} Bd2 {[%emt 0:02:00]} 50. Nc2 {[%emt 0:00:02]} Bc1 {[%emt 0:00:35]} 51. Ne1 {[%emt 0:00:02]} Bd2 {[%emt 0:00:28]} 1/2-1/2